[Event "WSTCC-50 2024"]
[Site "Krakow"]
[Date "2024.07.02"]
[Round "1.17"]
[White "Lalic, Susan K"]
[Black "Homer, Stephen J"]
[Result "1-0"]
[ECO "B51"]
[WhiteElo "2235"]
[BlackElo "2019"]
[Annotator "TA"]
[PlyCount "85"]
[EventDate "2024.07.01"]
[EventType "team-tourn"]
[EventCountry "POL"]
[SourceTitle "playchess.com"]
[Source "ChessBase"]
[SourceQuality "1"]
[TimeControl "40/5400+30:1800+30"]

{[%evp 9,85,22,15,12,19,16,16,17,28,17,17,10,17,-38,-15,-16,-24,-20,8,-15,36,37,60,2,7,-2,0,0,-4,-4,-9,-12,0,0,91,88,102,97,114,116,115,99,103,102,93,93,91,69,91,60,59,56,50,0,89,87,112,117,125,118,126,64,364,316,412,481,469,257,445,481,536,585,29988,29989,29989,29990,29990,29991]} 1. e4 {[%emt 0:00:08]} c5 {[%emt 0:00:00]} 2. Nf3 {[%emt 0:00:05]} d6 {[%emt 0:00:00]} 3. Bb5+ {[%emt 0:00:13]} Nd7 {[%emt 0:00:00]} 4. Ba4 {[%emt 0:00:10]} a6 {[%emt 0:00:00]} 5. c4 {[%emt 0:00:05]} Ngf6 {[%emt 0:00:00]} 6. Nc3 {[%emt 0:00:45]} g6 {[%emt 0:00:05]} 7. O-O {[%emt 0:00:42]} Bg7 {[%emt 0:00:04]} 8. h3 {[%emt 0:05:17] The position is equal.} O-O {[%emt 0:00:21][%cal Ob7b5]} 9. d3 {[%emt 0:02:02]} Rb8 {[%emt 0:00:17]} 10. Rb1 {[%emt 0:05:26]} Ne8 {[%emt 0:00:49][%cal Ob7b5]} 11. Bxd7 {[%emt 0:06:49]} (11. d4 $11) 11... Bxd7 $15 {[%emt 0:05:09]} 12. d4 {[%emt 0:00:06]} cxd4 {[%emt 0:08:19]} 13. Nxd4 {[%emt 0:00:04]} Nf6 {[%emt 0:23:59]} 14. a4 {[%emt 0:10:21]} Qc7 {[%emt 0:09:03]} ({Black should play} 14... Qb6 $11) 15. b3 $14 {[%emt 0:05:47]} e5 {[%emt 0:10:35]} 16. Nde2 {[%emt 0:10:35]} (16. Nc2 $14) 16... b5 $11 {[%emt 0:08:25]} 17. cxb5 {[%emt 0:11:23]} (17. axb5 {with more complications.} axb5 18. Bg5 bxc4 19. Bxf6 Bxf6 20. Nd5) 17... axb5 {[%emt 0:00:14]} 18. axb5 {[%emt 0:00:05]} Bxb5 {[%emt 0:00:39]} 19. Nxb5 {[%emt 0:06:09]} Rxb5 {[%emt 0:00:08][%cal Bb8b5,Bb5c5,Bc5c8][%mdl 32]} 20. Qd3 {[%emt 0:00:05]} Rfb8 {[%emt 0:04:36]} 21. Bg5 {[%emt 0:05:26]} Qb7 {[%emt 0:05:43]} (21... Nd7 $11 {keeps the balance.}) 22. Bxf6 $16 {[%emt 0:04:25]} Bxf6 {[%emt 0:00:05]} 23. Nc3 $1 {[%emt 0:00:38]} Rc5 {[%emt 0:06:33]} (23... Rxb3 $2 24. Rxb3 Qxb3 25. Rb1 $18 (25. Qxd6 Qb6 $11)) 24. b4 {[%emt 0:02:47]} ({Reject} 24. Qxd6 $6 Rxc3 25. Qxf6 Qxe4 $11) 24... Rcc8 {[%emt 0:00:26]} 25. Nd5 {[%emt 0:00:33]} Bd8 {[%emt 0:00:27]} 26. Rfd1 {[%emt 0:01:42][%cal Bf1d1,Bd1c1,Bc1c6][%mdl 32]} Qb5 {[%emt 0:01:21]} 27. Qxb5 {[%emt 0:04:17]} Rxb5 {[%emt 0:00:02]} 28. Rdc1 {[%emt 0:00:13]} Rcb8 {[%emt 0:00:59]} 29. Rc6 {[%emt 0:02:45]} Ba5 {[%emt 0:01:14][%cal Ra5b4]} 30. Rc4 {[%emt 0:04:12]} ({Don't play} 30. Rxd6 Bxb4 31. Rc6 Bc5 32. Rxb5 Rxb5 $11) 30... Kg7 {[%emt 0:00:01][%cal Ob5c5]} 31. g4 {[%emt 0:00:49]} (31. Kh2 $14) 31... R5b7 {[%emt 0:02:29]} (31... Rc5 $1 $11 32. Rxc5 (32. bxc5 Rxb1+ 33. Kg2 dxc5 $11) 32... dxc5) 32. Kg2 {[%emt 0:00:23] White is more active.} Bb6 {[%emt 0:00:28]} 33. Ra1 {[%emt 0:01:01]} Ra7 {[%emt 0:04:14] [#]} 34. Rxa7 Bxa7 {[%emt 0:00:01][%mdl 4096] Endgame. KRB-KRN} 35. Rc6 {[%emt 0:01:07]} (35. Rc7 $16 Bb6 36. Rd7) 35... Rd8 $2 {[%emt 0:00:09][%mdl 8192] Black cannot hold the game after this.} (35... Bd4 $14) 36. b5 $18 {[%emt 0:01:22][%cal Bb4b5,Bb5b6,Bb6b7][%mdl 32]} Bc5 {[%emt 0:00:15]} 37. b6 {[%emt 0:03:36]} Rb8 {[%emt 0:00:09]} 38. g5 {[%emt 0:00:51]} h6 $2 {[%emt 0:01:46]} (38... Bd4 {might work better.} 39. Rxd6 Rb7) 39. h4 {[%emt 0:00:05][%cal Bh3h4,Bh4g5][%mdl 32]} hxg5 {[%emt 0:00:07]} 40. hxg5 {[%emt 0:00:02]} Kf8 {[%emt 0:05:08] [#]} 41. b7 $1 {[%emt 0:32:09][%mdl 512] White mates.} Kg7 {[%emt 0:31:15]} (41... Ba7 42. Rc8+) 42. Rc8 {[%emt 0:00:21]} Ba7 {[%emt 0:00:22]} 43. Nf6 {[%emt 0:00:27] Weighted Error Value: White=0.12 (very precise) /Black=0.56.  Loses game:     	---       	Black=1      Mistake:       	White=4     	Black=4      Inaccurate:     	White=1     	Black=3      OK:         	White=14    	Black=14     Best:        	White=2     	---        Strong:       	White=1     	---        Brilliant:      	White=1     	---} 1-0

[Event "WSTCC-50 2024"]
[Site "Krakow"]
[Date "2024.07.02"]
[Round "1.18"]
[White "Sielicki, Tomasz"]
[Black "Fleish, Felix"]
[Result "1/2-1/2"]
[ECO "A45"]
[WhiteElo "2017"]
[BlackElo "2161"]
[Annotator "RC"]
[PlyCount "40"]
[EventDate "2024.07.01"]
[EventType "team-tourn"]
[EventCountry "POL"]
[SourceTitle "playchess.com"]
[Source "ChessBase"]
[SourceQuality "1"]
[TimeControl "40/5400+30:1800+30"]

1. d4 Nf6 {[%emt 0:00:02]} 2. Bf4 {[%emt 0:00:21]} c5 {[%emt 0:00:23]} 3. d5 {[%emt 0:00:30]} d6 {[%emt 0:00:56]} 4. Nc3 {[%emt 0:01:14]} e5 {[%emt 0:00:50]} 5. Bg5 {[%emt 0:05:17]} Be7 {[%emt 0:00:10]} 6. Bxf6 {[%emt 0:00:26]} Bxf6 {[%emt 0:01:21]} 7. e4 {[%emt 0:00:50]} O-O {[%emt 0:03:07]} 8. Nf3 {[%emt 0:02:05]} a6 {[%emt 0:02:31]} 9. a4 {[%emt 0:00:34]} g6 {[%emt 0:01:51]} 10. h4 {[%emt 0:11:48]} Bg4 {[%emt 0:11:38]} 11. g3 {[%emt 0:09:53]} Nd7 12. Bh3 Bxh3 {[%emt 0:22:38]} 13. Rxh3 {[%emt 0:00:48]} c4 {[%emt 0:00:10]} 14. Nd2 {[%emt 0:09:06]} Rc8 15. Qe2 {[%emt 0:05:55]} b5 {[%emt 0:10:48]} 16. axb5 {[%emt 0:05:40]} axb5 {[%emt 0:00:01]} 17. Kf1 {[%emt 0:05:36]} b4 {[%emt 0:05:38]} 18. Nd1 {[%emt 0:04:07]} c3 {[%emt 0:06:49]} 19. bxc3 {[%emt 0:01:17]} bxc3 {[%emt 0:00:01]} 20. Nb1 {[%emt 0:03:28]} Qb6 1/2-1/2

[Event "WSTCC-50 2024"]
[Site "Krakow"]
[Date "2024.07.02"]
[Round "1.18"]
[White "Rasalingam, Haran"]
[Black "Lauterbach, Ingrid"]
[Result "1-0"]
[ECO "B24"]
[WhiteElo "1944"]
[BlackElo "2023"]
[Annotator "NA RC"]
[PlyCount "63"]
[EventDate "2024.07.01"]
[EventType "team-tourn"]
[EventCountry "POL"]
[SourceTitle "playchess.com"]
[Source "ChessBase"]
[SourceQuality "1"]
[TimeControl "40/5400+30:1800+30"]

1. e4 {[%emt 0:00:03]} c5 {[%emt 0:00:08]} 2. Nc3 {[%emt 0:00:11]} Nc6 {[%emt 0:00:58]} 3. Bb5 {[%emt 0:00:19]} Nd4 {[%emt 0:01:00]} 4. Nf3 {[%emt 0:00:20]} Nxb5 {[%emt 0:03:39]} 5. Nxb5 {[%emt 0:00:07]} g6 {[%emt 0:00:21]} 6. d4 {[%emt 0:06:36]} Bg7 {[%emt 0:01:31]} 7. Be3 {[%emt 0:03:19]} Qa5+ {[%emt 0:06:14]} 8. Nc3 {[%emt 0:00:09]} cxd4 {[%emt 0:03:51]} 9. Nxd4 {[%emt 0:07:51]} Nf6 {[%emt 0:03:12]} 10. f3 {[%emt 0:03:02]} d6 {[%emt 0:03:41]} 11. Qd2 {[%emt 0:01:16]} a6 {[%emt 0:04:58]} 12. Bh6 {[%emt 0:03:26]} Bxh6 {[%emt 0:11:53]} 13. Qxh6 {[%emt 0:00:11]} Qh5 {[%emt 0:07:31]} 14. Qd2 {[%emt 0:08:29]} Bd7 {[%emt 0:00:15]} 15. O-O-O {[%emt 0:00:11]} O-O-O {[%emt 0:02:21]} 16. Kb1 {[%emt 0:01:00]} Kb8 {[%emt 0:00:45]} 17. g4 {[%emt 0:07:20]} Qc5 {[%emt 0:01:45]} 18. h4 {[%emt 0:07:49]} h6 {[%emt 0:01:29]} 19. Rhe1 {[%emt 0:04:50]} g5 {[%emt 0:09:30]} 20. Nf5 {[%emt 0:02:55]} d5 {[%emt 0:16:07]} 21. hxg5 {[%emt 0:12:08]} hxg5 {[%emt 0:00:23]} 22. Qxg5 {[%emt 0:00:14]} d4 {[%emt 0:01:13]} 23. Rxd4 {[%emt 0:02:55]} Bxf5 {[%emt 0:01:40]} 24. Rxd8+ {[%emt 0:00:31]} Rxd8 {[%emt 0:00:08]} 25. exf5 {[%emt 0:02:32]} Qf2 {[%emt 0:02:25]} 26. Qe3 {[%emt 0:00:14]} Rd2 {[%emt 0:03:10]} 27. Qf4+ {[%emt 0:06:06]} Kc8 {[%emt 0:01:26]} 28. Rh1 {[%emt 0:03:10]} Qg2 {[%emt 0:03:18]} 29. Rh8+ {[%emt 0:04:01]} Kd7 {[%emt 0:00:10]} 30. a3 {[%emt 0:01:33]} Qg1+ {[%emt 0:02:40]} 31. Ka2 {[%emt 0:00:18]} Qc5 {[%emt 0:00:43]} 32. Qxd2+ 1-0

[Event "WSTCC-50 2024"]
[Site "Krakow"]
[Date "2024.07.02"]
[Round "1.19"]
[White "Jackson, Sheila"]
[Black "Wilson, Edgar"]
[Result "1/2-1/2"]
[ECO "A08"]
[WhiteElo "1988"]
[BlackElo "1912"]
[Annotator "NA RC"]
[PlyCount "156"]
[EventDate "2024.07.01"]
[EventType "team-tourn"]
[EventCountry "POL"]
[SourceTitle "playchess.com"]
[Source "ChessBase"]
[SourceQuality "1"]
[TimeControl "40/5400+30:1800+30"]

1. e4 {[%emt 0:00:02]} e6 {[%emt 0:00:20]} 2. d3 {[%emt 0:00:13]} d5 {[%emt 0:00:52]} 3. Nd2 {[%emt 0:00:05]} Nf6 {[%emt 0:00:34]} 4. Ngf3 {[%emt 0:00:19]} c5 {[%emt 0:00:42]} 5. g3 {[%emt 0:00:13]} Be7 {[%emt 0:00:18]} 6. Bg2 {[%emt 0:00:16]} Nc6 {[%emt 0:00:23]} 7. O-O {[%emt 0:00:22]} O-O {[%emt 0:00:16]} 8. Re1 {[%emt 0:01:36]} b5 {[%emt 0:01:02]} 9. h4 {[%emt 0:04:49]} a5 {[%emt 0:02:37]} 10. a4 {[%emt 0:19:21]} b4 {[%emt 0:09:38]} 11. b3 {[%emt 0:01:45]} Ba6 {[%emt 0:19:56]} 12. Bb2 {[%emt 0:02:45]} Qc7 {[%emt 0:04:13]} 13. Qe2 {[%emt 0:12:19]} Rac8 {[%emt 0:07:17]} 14. exd5 {[%emt 0:02:42]} exd5 {[%emt 0:05:31]} 15. Bh3 {[%emt 0:00:57]} Rcd8 {[%emt 0:01:43]} 16. Rad1 {[%emt 0:01:21]} Rfe8 {[%emt 0:02:49]} 17. Qf1 {[%emt 0:00:31]} Nd7 {[%emt 0:10:42]} 18. h5 {[%emt 0:02:42]} h6 {[%emt 0:01:28]} 19. Bf5 {[%emt 0:04:08]} Bd6 {[%emt 0:04:08]} 20. Qh3 {[%emt 0:04:06]} Nde5 {[%emt 0:01:28]} 21. Nxe5 {[%emt 0:12:43]} Bxe5 {[%emt 0:00:53]} 22. Bxe5 {[%emt 0:00:48]} Rxe5 {[%emt 0:04:11]} 23. Nf3 {[%emt 0:01:06]} Ree8 {[%emt 0:05:50]} 24. Qh4 {[%emt 0:04:24]} Bc8 {[%emt 0:03:28]} 25. Bxc8 {[%emt 0:00:56]} Rxc8 {[%emt 0:01:38]} 26. Kg2 {[%emt 0:02:06]} Qd7 {[%emt 0:03:05]} 27. Qf4 {[%emt 0:01:09]} Nd4 {[%emt 0:01:10]} 28. Nxd4 {[%emt 0:04:39]} cxd4 {[%emt 0:00:03]} 29. Qxd4 {[%emt 0:02:04]} Rxe1 {[%emt 0:02:27]} 30. Rxe1 {[%emt 0:00:02]} Rxc2 {[%emt 0:00:38]} 31. Re5 {[%emt 0:00:47]} Rc3 {[%emt 0:01:49]} 32. Rxd5 {[%emt 0:00:56]} Qc6 {[%emt 0:00:42]} 33. Kh3 {[%emt 0:04:58]} Qe6+ {[%emt 0:02:12]} 34. g4 {[%emt 0:00:39]} Rxb3 {[%emt 0:00:47]} 35. Rxa5 {[%emt 0:01:22]} Qe1 {[%emt 0:01:14]} 36. Kg2 {[%emt 0:02:09]} Qe6 {[%emt 0:01:16]} 37. Ra8+ {[%emt 0:00:57]} Kh7 {[%emt 0:00:02]} 38. Qe4+ {[%emt 0:00:36]} Qxe4+ {[%emt 0:00:48]} 39. dxe4 {[%emt 0:00:01]} Ra3 {[%emt 0:00:42]} 40. a5 {[%emt 0:00:51]} b3 {[%emt 0:00:37]} 41. Rb8 {[%emt 0:30:53]} g6 {[%emt 0:05:01]} 42. hxg6+ {[%emt 0:00:00]} Kxg6 {[%emt 0:00:40]} 43. Rb5 {[%emt 0:00:00]} b2 {[%emt 0:03:07]} 44. Rxb2 {[%emt 0:00:00]} Rxa5 {[%emt 0:00:05]} 45. Kg3 {[%emt 0:00:00]} h5 {[%emt 0:02:22]} 46. Rb6+ {[%emt 0:00:00]} Kg7 {[%emt 0:00:31]} 47. gxh5 {[%emt 0:00:00]} Rxh5 {[%emt 0:00:08]} 48. Kg4 {[%emt 0:00:00]} Ra5 {[%emt 0:00:24]} 49. f4 {[%emt 0:00:00]} Ra1 {[%emt 0:03:05]} 50. e5 {[%emt 0:00:00]} Re1 {[%emt 0:00:43]} 51. Kf5 {[%emt 0:00:00]} Rh1 {[%emt 0:01:13]} 52. Rb7 {[%emt 0:00:00]} Re1 {[%emt 0:00:24]} 53. Re7 {[%emt 0:00:00]} Ra1 {[%emt 0:04:15]} 54. Rd7 {[%emt 0:00:00]} Ra6 {[%emt 0:01:10]} 55. Rd6 {[%emt 0:00:00]} Ra5 {[%emt 0:00:23]} 56. Ke4 {[%emt 0:00:00]} Rb5 {[%emt 0:00:51]} 57. f5 {[%emt 0:00:00]} Ra5 {[%emt 0:00:52]} 58. Rd7 {[%emt 0:00:00]} Kg8 {[%emt 0:05:52]} 59. Rd8+ {[%emt 0:00:00]} Kh7 {[%emt 0:01:16]} 60. e6 {[%emt 0:01:03]} fxe6 {[%emt 0:04:10]} 61. fxe6 {[%emt 0:00:01]} Ra1 {[%emt 0:00:58]} 62. Rf8 {[%emt 0:02:35]} Kg7 {[%emt 0:01:11]} 63. Rf3 {[%emt 0:02:13]} Re1+ {[%emt 0:01:50]} 64. Kf5 {[%emt 0:00:41]} Kf8 {[%emt 0:00:50]} 65. Kf6 {[%emt 0:00:08]} Ke8 {[%emt 0:00:23]} 66. Rf5 {[%emt 0:00:40]} Re2 {[%emt 0:00:14]} 67. Rf1 {[%emt 0:05:34]} Re3 {[%emt 0:00:30]} 68. Rd1 {[%emt 0:00:26]} Rf3+ {[%emt 0:01:02]} 69. Ke5 {[%emt 0:00:09]} Re3+ {[%emt 0:00:05]} 70. Kd6 {[%emt 0:00:04]} Re2 {[%emt 0:00:25]} 71. Rd5 {[%emt 0:00:36]} Re1 {[%emt 0:00:05]} 72. Rh5 {[%emt 0:01:11]} Rd1+ {[%emt 0:00:04]} 73. Ke5 {[%emt 0:00:14]} Re1+ {[%emt 0:00:07]} 74. Kf6 {[%emt 0:00:11]} Rf1+ {[%emt 0:00:11]} 75. Rf5 {[%emt 0:00:28]} Rxf5+ {[%emt 0:01:00]} 76. Kxf5 {[%emt 0:00:06]} Ke7 {[%emt 0:00:08]} 77. Ke5 {[%emt 0:00:01]} Ke8 {[%emt 0:00:30]} 78. Kd6 {[%emt 0:00:04]} Kd8 {[%emt 0:00:08]} 1/2-1/2

[Event "WSTCC-50 2024"]
[Site "Krakow"]
[Date "2024.07.02"]
[Round "1.19"]
[White "Linik, Yaron"]
[Black "Flis, Pawel"]
[Result "1/2-1/2"]
[ECO "C47"]
[WhiteElo "1910"]
[BlackElo "1980"]
[Annotator "NA RC"]
[PlyCount "92"]
[EventDate "2024.07.01"]
[EventType "team-tourn"]
[EventCountry "POL"]
[SourceTitle "playchess.com"]
[Source "ChessBase"]
[SourceQuality "1"]
[TimeControl "40/5400+30:1800+30"]

1. e4 {[%emt 0:00:04]} e5 {[%emt 0:00:05]} 2. Nf3 {[%emt 0:00:24]} Nc6 {[%emt 0:00:05]} 3. Nc3 {[%emt 0:00:23]} Nf6 {[%emt 0:00:13]} 4. a3 {[%emt 0:00:24]} d5 {[%emt 0:00:30]} 5. Bb5 {[%emt 0:00:44]} d4 {[%emt 0:01:57]} 6. Ne2 {[%emt 0:00:26]} Bd7 {[%emt 0:04:22]} 7. d3 {[%emt 0:03:54]} Bd6 {[%emt 0:00:43]} 8. Bg5 {[%emt 0:04:09]} h6 {[%emt 0:03:58]} 9. Bh4 {[%emt 0:03:49]} g5 {[%emt 0:04:07]} 10. Bg3 {[%emt 0:01:19]} Qe7 {[%emt 0:02:53]} 11. Qd2 {[%emt 0:03:55]} O-O-O {[%emt 0:08:39]} 12. Bxc6 {[%emt 0:08:37]} Bxc6 {[%emt 0:02:16]} 13. Qa5 {[%emt 0:01:17]} Nd7 {[%emt 0:13:46]} 14. Qxa7 {[%emt 0:03:23]} f5 {[%emt 0:09:12]} 15. exf5 {[%emt 0:08:46]} Rhf8 {[%emt 0:05:50]} 16. O-O-O {[%emt 0:04:58]} Bxf3 {[%emt 0:18:44]} 17. Qa8+ {[%emt 0:08:33]} Nb8 {[%emt 0:00:09]} 18. gxf3 {[%emt 0:00:10]} Rxf5 {[%emt 0:00:17]} 19. h4 {[%emt 0:01:27]} Rxf3 {[%emt 0:02:15]} 20. hxg5 {[%emt 0:02:25]} hxg5 {[%emt 0:02:09]} 21. Rde1 {[%emt 0:01:47]} Qf7 {[%emt 0:01:41]} 22. Kb1 {[%emt 0:03:05]} Rf6 {[%emt 0:04:26]} 23. Nc1 {[%emt 0:04:07]} e4 {[%emt 0:00:23]} 24. Rxe4 {[%emt 0:01:36]} Bxg3 {[%emt 0:00:08]} 25. fxg3 {[%emt 0:00:11]} Ra6 {[%emt 0:00:10]} 26. Qxa6 {[%emt 0:03:42]} Nxa6 {[%emt 0:00:07]} 27. g4 {[%emt 0:02:06]} c5 {[%emt 0:02:20]} 28. Rhe1 {[%emt 0:01:05]} Qf3 {[%emt 0:00:45]} 29. Nb3 {[%emt 0:00:51]} Rh8 {[%emt 0:01:31]} 30. Nd2 {[%emt 0:00:51]} Qg2 {[%emt 0:00:38]} 31. R1e2 {[%emt 0:00:42]} Qg3 {[%emt 0:01:11]} 32. Nc4 {[%emt 0:01:26]} b5 {[%emt 0:04:56]} 33. Nb6+ {[%emt 0:00:44]} Kc7 {[%emt 0:00:56]} 34. Nd5+ {[%emt 0:01:30]} Kd6 {[%emt 0:00:34]} 35. Nf6 {[%emt 0:00:25]} Nc7 {[%emt 0:00:41]} 36. Re6+ {[%emt 0:00:12]} Nxe6 {[%emt 0:01:01]} 37. Ne4+ {[%emt 0:00:06]} Kd5 {[%emt 0:00:28]} 38. Nxg3 {[%emt 0:00:10]} Nf4 {[%emt 0:00:33]} 39. Re7 {[%emt 0:02:18]} Rh4 {[%emt 0:00:42]} 40. Ne4 {[%emt 0:00:32]} Rxg4 {[%emt 0:03:00]} 41. Rg7 {[%emt 0:32:13]} Rg1+ {[%emt 0:30:22]} 42. Ka2 {[%emt 0:00:06]} Ne6 {[%emt 0:00:52]} 43. Rd7+ Ke5 44. Re7 {[%emt 0:06:36]} Kd5 {[%emt 0:00:00]} 45. Rd7+ {[%emt 0:00:00]} Ke5 {[%emt 0:00:00]} 46. Re7 {[%emt 0:00:00]} Kd5 {[%emt 0:00:00]} 1/2-1/2

[Event "WSTCC-50 2024"]
[Site "Krakow"]
[Date "2024.07.02"]
[Round "1.20"]
[White "Zielinski, Olgierd"]
[Black "Bulkovstein, David"]
[Result "1/2-1/2"]
[ECO "C01"]
[WhiteElo "1913"]
[BlackElo "1842"]
[Annotator "NA RC"]
[PlyCount "49"]
[EventDate "2024.07.01"]
[EventType "team-tourn"]
[EventCountry "POL"]
[SourceTitle "playchess.com"]
[Source "ChessBase"]
[SourceQuality "1"]
[TimeControl "40/5400+30:1800+30"]

1. e4 {[%emt 0:00:06]} e6 {[%emt 0:00:05]} 2. d4 {[%emt 0:00:10]} d5 {[%emt 0:00:06]} 3. exd5 {[%emt 0:00:13]} exd5 {[%emt 0:00:09]} 4. Nf3 {[%emt 0:00:11]} Nc6 {[%emt 0:00:16]} 5. Bb5 {[%emt 0:00:33]} Bd6 {[%emt 0:01:47]} 6. c4 {[%emt 0:00:47]} a6 {[%emt 0:05:33]} 7. Ba4 {[%emt 0:00:09]} dxc4 {[%emt 0:00:07]} 8. d5 {[%emt 0:00:08]} b5 {[%emt 0:00:07]} 9. dxc6 {[%emt 0:00:20]} bxa4 {[%emt 0:00:06]} 10. O-O {[%emt 0:00:10]} Ne7 {[%emt 0:09:41]} 11. Nbd2 {[%emt 0:00:15]} c3 {[%emt 0:03:54]} 12. Ne4 {[%emt 0:00:21]} O-O {[%emt 0:09:43]} 13. Qxa4 {[%emt 0:04:05]} Bf5 {[%emt 0:16:43]} 14. Nxd6 {[%emt 0:02:32]} Qxd6 {[%emt 0:00:26]} 15. Nd4 {[%emt 0:01:26]} Bd3 {[%emt 0:14:26]} 16. Rd1 {[%emt 0:17:23]} Qg6 {[%emt 0:06:02]} 17. bxc3 {[%emt 0:01:45]} Nd5 {[%emt 0:02:25]} 18. Bd2 {[%emt 0:08:03]} Nb6 {[%emt 0:03:34]} 19. Qa5 {[%emt 0:00:12]} Rfd8 {[%emt 0:08:21]} 20. Qg5 {[%emt 0:00:38]} Bc4 {[%emt 0:04:59]} 21. Qxg6 {[%emt 0:07:06]} hxg6 {[%emt 0:00:14]} 22. Bg5 {[%emt 0:00:33]} Re8 {[%emt 0:01:05]} 23. Rd2 {[%emt 0:05:37]} Nd5 {[%emt 0:00:47]} 24. Rc2 {[%emt 0:01:37]} Rab8 {[%emt 0:01:06]} 25. Rd1 {[%emt 0:14:18]} 1/2-1/2

[Event "WSTCC-50 2024"]
[Site "Krakow"]
[Date "2024.07.02"]
[Round "1.20"]
[White "De Winter, Kevin"]
[Black "Fink-Nunn, Petra"]
[Result "0-1"]
[ECO "C58"]
[WhiteElo "1803"]
[BlackElo "1947"]
[Annotator "NA RC"]
[PlyCount "72"]
[EventDate "2024.07.01"]
[EventType "team-tourn"]
[EventCountry "POL"]
[SourceTitle "playchess.com"]
[Source "ChessBase"]
[SourceQuality "1"]
[TimeControl "40/5400+30:1800+30"]

1. e4 {[%emt 0:00:07]} e5 {[%emt 0:00:09]} 2. Nf3 {[%emt 0:00:23]} Nc6 {[%emt 0:00:12]} 3. Bc4 {[%emt 0:00:03]} Nf6 {[%emt 0:00:12]} 4. Ng5 {[%emt 0:00:13]} d5 {[%emt 0:00:13]} 5. exd5 {[%emt 0:00:05]} Na5 {[%emt 0:00:13]} 6. Bb5+ {[%emt 0:00:05]} Bd7 {[%emt 0:00:12]} 7. Qe2 {[%emt 0:00:15]} Bd6 {[%emt 0:00:14]} 8. Bxd7+ {[%emt 0:12:50]} Qxd7 {[%emt 0:00:09]} 9. Nc3 {[%emt 0:01:17]} c6 {[%emt 0:09:37]} 10. dxc6 {[%emt 0:12:02]} Nxc6 {[%emt 0:00:16]} 11. Nge4 {[%emt 0:03:47]} Be7 {[%emt 0:19:38]} 12. d3 {[%emt 0:07:30]} Nd4 {[%emt 0:02:48]} 13. Qd1 {[%emt 0:01:20]} Nxe4 14. Nxe4 Qd5 {[%emt 0:11:03]} 15. O-O {[%emt 0:16:25]} O-O {[%emt 0:04:24]} 16. Bd2 {[%emt 0:08:25]} Rac8 {[%emt 0:04:32]} 17. Nc3 {[%emt 0:03:31]} Qc5 {[%emt 0:06:46]} 18. Rc1 {[%emt 0:01:43]} Rc6 {[%emt 0:12:02]} 19. Re1 {[%emt 0:05:26]} f5 {[%emt 0:08:36]} 20. b4 {[%emt 0:04:58]} Qd6 {[%emt 0:03:55]} 21. Ne2 {[%emt 0:07:16]} Rfc8 {[%emt 0:02:13]} 22. Nxd4 {[%emt 0:00:56]} Qxd4 {[%emt 0:00:22]} 23. a3 {[%emt 0:02:19]} Bf6 {[%emt 0:03:24]} 24. b5 {[%emt 0:02:19]} R6c7 {[%emt 0:01:08]} 25. Bb4 {[%emt 0:00:53]} Rd7 {[%emt 0:02:54]} 26. Qe2 {[%emt 0:01:43]} Qd5 {[%emt 0:00:22]} 27. Rcd1 {[%emt 0:00:27]} Qxb5 {[%emt 0:00:35]} 28. c4 {[%emt 0:01:34]} Qa4 {[%emt 0:02:22]} 29. d4 {[%emt 0:01:56]} e4 {[%emt 0:00:58]} 30. Qe3 {[%emt 0:02:57]} Rxc4 {[%emt 0:01:30]} 31. Qf4 {[%emt 0:01:03]} a5 {[%emt 0:02:04]} 32. Qxf5 {[%emt 0:00:32]} Rcxd4 {[%emt 0:01:44]} 33. Rxd4 {[%emt 0:00:36]} Rxd4 {[%emt 0:00:12]} 34. Qc8+ {[%emt 0:00:24]} Rd8 {[%emt 0:00:10]} 35. Qe6+ {[%emt 0:00:23]} Kh8 {[%emt 0:00:03]} 36. Be7 {[%emt 0:02:11]} Qe8 {[%emt 0:02:11]} 0-1